bitfinex/quotes_BTCUSD_20240719
["timestamp","ask_amount","ask_price","bid_price","bid_amount"]
[1721374901496,1.95702112,63792.0,63771.0,0.002]
[1721374901915,1.64350312,63792.0,63774.0,0.0652]
[1721374902115,1.65109424,63792.0,63774.0,0.302703]
[1721374902341,1.64350312,63792.0,63774.0,0.302703]
[1721374902585,1.34398512,63792.0,63774.0,0.1459]
[1721374902798,1.24515229,63792.0,63776.0,0.313596]
[1721374903063,1.24515229,63792.0,63779.0,0.156789]
[1721374903939,1.24515229,63792.0,63781.0,0.156785]
[1721374904158,1.24515229,63792.0,63782.0,0.156783]
[1721374904375,1.24515229,63792.0,63776.0,0.313596]
[1721374904376,1.24515229,63792.0,63780.0,0.156787]
[1721374905326,0.31775729,63792.0,63786.0,0.0601]
[1721374905551,0.31775729,63792.0,63786.0,0.373647]
[1721374905747,0.31775729,63792.0,63783.0,0.313561]
[1721374905748,0.21775729,63792.0,63783.0,0.313561]
[1721374905973,0.37451629,63792.0,63783.0,0.313561]
[1721374906289,0.37451629,63792.0,63785.0,0.156776]
[1721374907135,0.37451629,63792.0,63790.0,0.156763]
[1721374907136,0.04037555,63792.0,63790.0,0.156763]
[1721374908914,0.04037555,63792.0,63791.0,0.158761]
[1721374910215,0.028,63792.0,63791.0,0.609184]
[1721374910637,0.028,63792.0,63791.0,0.922707]
[1721374911487,0.014,63792.0,63791.0,0.922707]
[1721374911907,0.01237555,63803.0,63791.0,0.1389]
[1721374912116,0.01237555,63801.0,63800.0,0.156737]
[1721374912545,0.01237555,63799.0,63798.0,0.156742]
[1721374912750,0.01237555,63800.0,63799.0,0.156742]
[1721374913200,0.01237555,63795.0,63794.0,0.156754]
[1721374913415,0.1,63804.0,63796.0,0.156749]
[1721374913416,0.01237555,63797.0,63796.0,0.156749]
[1721374913622,0.01237555,63797.0,63796.0,0.470248]
[1721374915161,0.002794,63803.0,63791.0,0.1389]
[1721374915162,0.01237555,63798.0,63791.0,0.1389]
[1721374915385,0.01237555,63792.0,63791.0,0.002]
[1721374915606,0.16913455,63792.0,63791.0,0.002]
[1721374915819,0.01237555,63792.0,63791.0,0.002]
[1721374916044,0.22188174,63797.0,63796.0,0.470248]
[1721374916045,0.008,63797.0,63796.0,0.470248]
[1721374916553,0.006,63797.0,63796.0,0.783747]
[1721374917637,0.01237555,63806.0,63803.0,0.156731]
[1721374918079,0.01237555,63804.0,63803.0,0.156731]
[1721374918706,0.01237555,63806.0,63804.0,0.156729]
[1721374919770,0.10948347,63810.0,63809.0,0.156716]
[1721374919771,0.01237555,63810.0,63809.0,0.156716]
[1721374919977,0.01237555,63809.0,63808.0,0.470159]
[1721374920188,0.01237555,63809.0,63808.0,0.156719]
[1721374922237,0.01237555,63809.0,63804.0,0.31364666]
[1721374922238,0.48255755,63805.0,63804.0,0.00018866]
[1721374922455,0.85991408,63805.0,63804.0,0.00018866]
[1721374923975,1.17336908,63805.0,63804.0,0.00018866]
[1721374924196,1.29636908,63805.0,63804.0,0.00018866]
[1721374924405,1.60982408,63805.0,63804.0,0.00018866]
[1721374924852,1.36815727,63805.0,63804.0,0.00018866]
[1721374925062,1.35715727,63805.0,63804.0,0.00018866]
[1721374925281,1.37250381,63805.0,63804.0,0.00018866]
[1721374925543,1.31971562,63805.0,63804.0,0.00018866]
[1721374925730,1.32436908,63805.0,63804.0,0.00018866]
[1721374928823,0.91073929,63805.0,63804.0,0.00018866]
[1721374929051,1.24719429,63805.0,63804.0,0.00018866]
[1721374932405,1.56064929,63805.0,63804.0,0.00018866]
[1721374932641,1.61948977,63805.0,63804.0,0.00018866]
[1721374932858,1.6656162,63805.0,63804.0,0.00018866]
[1721374934137,1.81996577,63805.0,63804.0,0.00018866]
[1721374934789,1.82998564,63805.0,63804.0,0.00018866]
[1721374935007,1.9222385,63805.0,63804.0,0.00018866]
[1721374935212,1.92224635,63805.0,63804.0,0.00018866]
[1721374935417,1.82998564,63805.0,63804.0,0.00018866]
[1721374935627,1.77114516,63805.0,63804.0,0.00018866]
[1721374935869,1.83028188,63805.0,63804.0,0.00018866]
[1721374936300,1.67593231,63805.0,63804.0,0.00018866]
[1721374936516,1.66592015,63805.0,63804.0,0.00018866]
[1721374936729,1.56064929,63805.0,63804.0,0.00018866]
[1721374937791,1.24719429,63805.0,63804.0,0.00018866]
[1721374938867,0.93373929,63805.0,63804.0,0.00018866]
[1721374939290,0.99399646,63805.0,63804.0,0.00018866]
[1721374940620,1.30745146,63805.0,63804.0,0.00018866]
[1721374941462,1.46180103,63805.0,63804.0,0.00018866]
[1721374941673,1.14834603,63805.0,63804.0,0.00018866]
[1721374941881,1.24719429,63805.0,63804.0,0.00018866]
[1721374942091,1.30790431,63805.0,63804.0,0.00018866]
[1721374943080,1.36408921,63805.0,63804.0,0.00018866]
[1721374943703,0.84864931,63805.0,63804.0,0.00018866]
[1721374943934,0.78793929,63805.0,63804.0,0.00018866]
[1721374944365,0.14037555,63805.0,63804.0,0.06188866]
[1721374944786,0.028,63805.0,63804.0,0.06188866]
[1721374945006,0.04037555,63805.0,63804.0,0.21861766]
[1721374945215,0.028,63805.0,63804.0,0.60827666]
[1721374945435,0.04037555,63805.0,63804.0,0.60827666]
[1721374946072,0.04037555,63805.0,63804.0,0.29481766]
[1721374946303,0.04037555,63805.0,63804.0,0.60827666]
[1721374946745,0.04037555,63805.0,63804.0,0.29481766]
[1721374947623,0.028,63805.0,63804.0,0.92173566]
[1721374948487,0.014,63805.0,63804.0,1.23519466]
[1721374948724,0.00083,63806.0,63805.0,0.783637]
[1721374951517,0.02183,63806.0,63805.0,0.783637]
[1721374952887,0.03420555,63806.0,63805.0,0.783637]
[1721374953097,0.02183,63806.0,63805.0,0.783637]
[1721374954614,0.02183,63806.0,63805.0,1.238292]
[1721374954843,0.02183,63806.0,63805.0,1.43029819]
[1721374955048,0.02183,63806.0,63805.0,1.87390481]
[1721374955760,0.01283,63806.0,63805.0,1.87390481]
[1721374955965,0.00083,63806.0,63805.0,1.87390481]
[1721374956177,0.00083,63806.0,63805.0,1.87490481]
[1721374956398,0.00083,63806.0,63805.0,1.87390481]
[1721374956834,0.00183,63806.0,63805.0,1.87490481]
[1721374957044,0.00483,63806.0,63805.0,1.87490481]
[1721374957692,0.00183,63806.0,63805.0,1.87490481]
[1721374957905,0.00283,63806.0,63805.0,1.87690481]
[1721374958776,0.00083,63824.0,63817.0,1.44790645]
[1721374958986,0.00083,63824.0,63817.0,2.34233581]
[1721374959378,0.00083,63824.0,63817.0,2.34229685]
[1721374960066,0.00083,63824.0,63817.0,2.21218419]
[1721374960301,0.00083,63824.0,63817.0,2.44229653]
[1721374960547,0.002794,63840.0,63839.0,1.229608]
[1721374960767,0.00084,63841.0,63840.0,0.36215943]
[1721374960980,0.00084,63841.0,63840.0,1.27341319]
[1721374961190,0.00084,63841.0,63840.0,1.71676705]
[1721374961401,0.00084,63841.0,63840.0,1.58669619]
[1721374961683,0.00084,63841.0,63840.0,1.89997919]
[1721374962521,0.00084,63841.0,63840.0,1.99593637]
[1721374962732,0.00084,63841.0,63840.0,1.89997919]
[1721374963146,0.00084,63841.0,63840.0,1.91097919]
[1721374963581,0.00084,63841.0,63840.0,1.92397919]
[1721374963794,0.00084,63841.0,63840.0,2.23726219]
[1721374963974,0.00084,63841.0,63840.0,2.32021937]
[1721374964206,0.00084,63841.0,63840.0,2.00693637]
[1721374964409,0.00084,63841.0,63840.0,2.02093637]
[1721374964828,0.00084,63841.0,63840.0,2.00693637]
[1721374965026,0.00084,63841.0,63840.0,2.21326219]
[1721374965331,0.00084,63841.0,63840.0,2.24126219]
[1721374965536,0.00184,63841.0,63840.0,2.24126219]
[1721374965763,0.00084,63841.0,63840.0,2.22726219]
[1721374966162,0.00184,63841.0,63840.0,2.24126219]
[1721374966370,0.00084,63841.0,63840.0,1.91397919]
[1721374966784,0.00184,63841.0,63840.0,1.91397919]
[1721374967196,0.00284,63841.0,63840.0,1.92797919]
[1721374967618,0.00184,63841.0,63840.0,1.91397919]
[1721374967820,0.00184,63841.0,63840.0,2.22726219]
[1721374968044,0.00284,63841.0,63840.0,2.24126219]
[1721374968259,0.07717479,63868.0,63860.0,1.096147]
[1721374968260,0.00834,63861.0,63860.0,1.096147]
[1721374968462,0.00834,63861.0,63860.0,1.39202874]
[1721374969764,0.00934,63861.0,63860.0,1.39202874]
[1721374970393,0.00934,63861.0,63860.0,1.39302874]
[1721374970837,0.00934,63861.0,63860.0,1.25152874]
[1721374972321,0.00934,63861.0,63860.0,0.783962]
[1721374973414,0.00934,63861.0,63860.0,1.097147]
[1721374973625,0.00934,63861.0,63860.0,1.76743819]
[1721374973832,0.00934,63861.0,63860.0,1.91303819]
[1721374974489,1e-08,63861.0,63860.0,1.91203819]
[1721374974929,0.00834,63869.0,63868.0,1.096007]
[1721374975137,0.00834,63869.0,63868.0,1.25038874]
[1721374975350,0.00835,63872.0,63868.0,0.15438174]
[1721374975570,0.00835,63882.0,63881.0,0.156541]
[1721374975774,0.00835,63882.0,63881.0,0.469623]
[1721374976007,0.00835,63882.0,63881.0,0.782705]
[1721374978167,0.00835,63882.0,63881.0,0.783705]
[1721374978589,0.00835,63882.0,63881.0,1.096787]
[1721374978797,0.00835,63882.0,63881.0,1.25116874]
[1721374979648,0.00835,63882.0,63881.0,1.39056874]
[1721374980510,0.00835,63882.0,63881.0,1.38956874]
[1721374980996,0.00835,63882.0,63881.0,1.25116874]
[1721374981428,0.00835,63882.0,63881.0,1.25016874]
[1721374981629,0.00935,63882.0,63881.0,1.25916874]
[1721374982257,0.00935,63882.0,63881.0,1.43679319]
[1721374982486,0.00935,63882.0,63881.0,1.60889319]
[1721374982705,0.00935,63882.0,63881.0,1.92197519]
[1721374983133,0.00935,63882.0,63881.0,1.90597519]
[1721374983134,0.00835,63882.0,63881.0,1.90597519]
[1721374983607,0.00835,63882.0,63881.0,1.89035074]
[1721374984063,0.00835,63882.0,63881.0,1.41216874]
[1721374984723,0.00835,63882.0,63881.0,1.40416874]
[1721374984931,0.00835,63882.0,63881.0,1.62089319]
[1721374985134,0.00835,63882.0,63881.0,1.93397519]
[1721374985342,0.00835,63882.0,63881.0,2.06395641]
[1721374985964,0.00835,63882.0,63881.0,1.89635074]
[1721374986175,0.00835,63882.0,63881.0,1.73125074]
[1721374987052,0.00835,63882.0,63881.0,1.76887519]
[1721374987682,0.00835,63882.0,63881.0,1.73125074]
[1721374988106,0.00835,63882.0,63881.0,1.27816874]
[1721374988331,0.00835,63882.0,63881.0,0.028]
[1721374988332,0.02072555,63882.0,63881.0,0.028]
[1721374988552,0.15812555,63882.0,63881.0,0.028]
[1721374989204,0.15812555,63882.0,63881.0,0.014]
[1721374989619,0.23530034,63882.0,63881.0,0.014]
[1721374989828,0.39183834,63882.0,63881.0,0.014]
[1721374990049,0.01237555,63877.0,63876.0,0.156552]
[1721374990292,0.01237555,63871.0,63870.0,0.313131]
[1721374990536,0.08955034,63871.0,63870.0,0.782835]
[1721374990773,0.07717479,63871.0,63870.0,0.782835]
[1721374991012,0.1405,63876.0,63870.0,0.782835]
[1721374991013,0.1405,63876.0,63875.0,0.156555]
[1721374991221,0.1405,63876.0,63875.0,0.782777]
[1721374991424,0.0775,63876.0,63875.0,0.782777]
[1721374991642,0.08465,63882.0,63875.0,0.15438174]
[1721374991857,0.08465,63882.0,63868.0,0.03762445]
[1721374991858,0.00835,63882.0,63881.0,0.469623]
[1721374992071,0.00835,63882.0,63881.0,0.782705]
[1721374992697,0.00835,63882.0,63870.0,0.012]
[1721374992698,0.608562,63876.0,63875.0,0.004]
[1721374992915,1.01122134,63876.0,63875.0,0.004]
[1721374993133,0.15737555,63871.0,63870.0,0.012]
[1721374993354,0.15737555,63871.0,63865.0,0.15658]
[1721374993355,0.01237555,63866.0,63865.0,0.15658]
[1721374993771,0.01237555,63866.0,63847.0,0.167894]
[1721374993772,0.01237555,63862.0,63860.0,0.156591]
[1721374993990,0.15057555,63861.0,63860.0,0.156591]
[1721374994212,0.1382,63861.0,63860.0,0.156591]
[1721374994422,0.15057555,63861.0,63860.0,0.469776]
[1721374994831,0.15057555,63861.0,63860.0,0.156591]
[1721374995260,0.00812524,63853.0,63852.0,0.156612]
[1721374995483,0.00812524,63853.0,63847.0,0.002794]
[1721374995484,0.00812524,63848.0,63847.0,0.002794]
[1721374995692,0.00812524,63847.0,63836.0,0.002794]
[1721374995918,0.00812524,63845.0,63837.0,0.15438174]
[1721374996127,0.00812524,63847.0,63846.0,0.156626]
[1721374996375,0.1382,63853.0,63852.0,0.156612]
[1721374996586,0.00812524,63865.0,63853.0,0.313214]
[1721374996804,0.00812524,63863.0,63862.0,0.156586]
[1721374997023,0.14632524,63863.0,63862.0,0.156586]
[1721374997237,0.1382,63863.0,63862.0,0.156586]
[1721374997476,0.14632524,63863.0,63862.0,0.156586]
[1721374998775,0.15132524,63863.0,63862.0,0.156586]
[1721375000538,0.15632524,63863.0,63862.0,0.156586]
[1721375001502,0.00812524,63861.0,63860.0,0.313182]
[1721375002591,0.1482,63863.0,63860.0,0.313182]
[1721375002592,0.1482,63863.0,63861.0,0.31318]
[1721375002764,0.15132524,63863.0,63862.0,0.156587]
[1721375003403,0.14632524,63863.0,63862.0,0.156587]
[1721375003840,0.00812524,63861.0,63860.0,0.313183]
[1721375004049,0.00812524,63861.0,63860.0,0.469775]
[1721375005269,0.01012524,63861.0,63860.0,0.469775]
[1721375005781,0.01412524,63861.0,63860.0,0.469775]
[1721375005993,0.00812524,63858.0,63857.0,0.469793]
[1721375007217,0.00812524,63858.0,63857.0,0.783992]
[1721375007427,0.1382,63863.0,63860.0,0.469777]
[1721375007428,0.00812524,63861.0,63860.0,0.469777]
[1721375008351,0.1382,63863.0,63860.0,0.313185]
[1721375008504,0.14632524,63863.0,63862.0,0.156587]
[1721375008717,0.14632524,63863.0,63861.0,0.156588]
[1721375008718,0.00812524,63862.0,63861.0,0.156588]
[1721375008925,0.00812524,63860.0,63855.0,0.313204]
[1721375009139,0.1382,63863.0,63843.0,0.002794]
[1721375009140,0.00812524,63857.0,63856.0,0.002794]
[1721375009284,0.00812524,63857.0,63850.0,0.31323]
[1721375009285,0.00812524,63852.0,63850.0,0.31323]
[1721375009501,0.00812524,63853.0,63851.0,0.316022]
[1721375009694,0.00812524,63853.0,63852.0,0.469836]
[1721375010119,0.00812524,63855.0,63854.0,0.156607]
[1721375010345,0.00812524,63855.0,63854.0,0.469821]
[1721375010489,0.14722524,63857.0,63856.0,0.156602]
[1721375010917,0.00812524,63854.0,63853.0,0.313217]
[1721375011118,0.00812524,63854.0,63853.0,0.469826]
[1721375011323,0.14722524,63857.0,63856.0,0.156602]
[1721375011531,0.00812524,63854.0,63853.0,0.313217]
[1721375011798,0.00812524,63854.0,63853.0,0.469826]
[1721375012468,0.1391,63857.0,63856.0,0.469806]
[1721375012664,0.55237479,63869.0,63860.0,0.469777]
[1721375012665,0.00812524,63861.0,63860.0,0.469777]
[1721375012901,0.00812524,63861.0,63860.0,0.156592]
[1721375013374,0.00793681,63861.0,63860.0,0.156592]
[1721375014833,0.01193681,63861.0,63860.0,0.156592]
[1721375015012,0.01393681,63861.0,63860.0,0.156592]
[1721375016824,0.006,63861.0,63853.0,0.313217]
[1721375017039,0.00793681,63854.0,63853.0,0.783045]
[1721375017240,0.00793681,63854.0,63844.0,0.0621]
[1721375017241,0.00793681,63853.0,63852.0,0.156612]
[1721375017450,0.14803681,63853.0,63852.0,0.156612]
[1721375017868,0.00793681,63849.0,63848.0,0.156621]
[1721375018073,0.1401,63853.0,63844.0,0.313263]
[1721375018074,0.00793681,63847.0,63844.0,0.313263]
[1721375018290,0.00793681,63849.0,63848.0,0.156621]
[1721375018497,0.00793681,63849.0,63848.0,0.469864]
[1721375019909,0.14803681,63853.0,63848.0,0.313243]
[1721375020122,0.1401,63853.0,63852.0,0.469836]
[1721375020369,0.156579,63866.0,63852.0,0.15438174]
[1721375020370,0.14863681,63866.0,63852.0,0.15438174]
[1721375020608,0.14863681,63866.0,63865.0,0.15658]
[1721375020815,0.14863681,63866.0,63865.0,0.46974]
[1721375021907,0.15663681,63866.0,63865.0,0.46974]
[1721375022325,0.14863681,63866.0,63865.0,0.15658]
[1721375022559,0.14863681,63866.0,63865.0,0.46974]
[1721375022968,0.00793681,63859.0,63858.0,0.469791]
[1721375023139,0.14743681,63859.0,63858.0,0.156597]
[1721375023796,0.00793681,63855.0,63854.0,0.313212]
[1721375023977,0.00793681,63855.0,63854.0,0.469819]
[1721375024336,0.00793681,63857.0,63856.0,0.469806]
[1721375024758,0.00793681,63857.0,63856.0,0.78301]
[1721375025340,0.1415,63859.0,63858.0,0.782985]
[1721375025551,0.077,63859.0,63858.0,0.782985]
[1721375025751,0.002,63859.0,63858.0,0.782985]
[1721375026156,0.00993681,63859.0,63858.0,0.782985]
[1721375026356,0.002,63859.0,63858.0,0.782985]
[1721375026562,0.0851116,63862.0,63861.0,0.46977]
[1721375027009,0.07717479,63862.0,63861.0,0.46977]
[1721375027154,0.0851116,63862.0,63861.0,0.46977]
[1721375027654,0.1081116,63862.0,63861.0,0.46977]
[1721375028168,0.1121116,63862.0,63861.0,0.46977]
[1721375028366,0.10417479,63862.0,63861.0,0.78295]
[1721375028574,0.11017479,63862.0,63861.0,0.47077]
[1721375028769,0.11017479,63862.0,63861.0,0.46977]
[1721375028770,0.10017479,63862.0,63861.0,0.46977]
[1721375029013,0.1121116,63862.0,63861.0,0.46977]
[1721375029218,0.10817479,63862.0,63861.0,0.46977]
[1721375029630,0.10817479,63862.0,63853.0,0.077413]
[1721375029631,0.47775781,63854.0,63853.0,0.000913]
[1721375029835,1.27802978,63854.0,63853.0,0.000913]
[1721375030039,1.71424557,63854.0,63853.0,0.000913]
[1721375030665,1.76424557,63854.0,63853.0,0.000913]
[1721375031322,1.76524557,63854.0,63853.0,0.006913]
[1721375031567,1.71424557,63854.0,63853.0,0.000913]
[1721375031696,1.72424557,63854.0,63853.0,0.001913]
[1721375031899,1.72424557,63854.0,63853.0,0.002913]
[1721375031900,1.42503157,63854.0,63853.0,0.002913]
[1721375032105,1.10181757,63854.0,63853.0,0.000913]
[1721375032345,0.98861434,63854.0,63853.0,0.001913]
[1721375032553,1.00261434,63854.0,63853.0,0.001913]
[1721375032770,0.98861434,63854.0,63853.0,0.000913]
[1721375033578,1.91757481,63846.0,63845.0,0.002794]
[1721375033810,1.91757481,63846.0,63818.0,0.04679675]
[1721375033811,0.00793681,63821.0,63820.0,0.002794]
[1721375034104,0.00793681,63825.0,63820.0,0.156689]
[1721375034300,0.00793681,63823.0,63820.0,0.156689]
[1721375034508,0.00793681,63823.0,63817.0,0.313394]
[1721375034509,0.00793681,63823.0,63817.0,0.002794]
[1721375034720,0.00793681,63821.0,63820.0,0.313381]
[1721375034895,0.023,63821.0,63820.0,0.313381]
[1721375035117,0.024,63821.0,63820.0,0.323381]
[1721375035343,0.001,63821.0,63820.0,0.331381]
[1721375035552,0.023,63822.0,63821.0,0.470064]
[1721375035939,0.00893681,63825.0,63821.0,0.313376]
[1721375035940,0.023,63824.0,63821.0,0.313376]
[1721375036138,0.023,63824.0,63822.0,0.156685]
[1721375036139,0.00893681,63823.0,63822.0,0.156685]
[1721375036339,0.03193681,63823.0,63822.0,0.470056]
[1721375036764,0.024,63823.0,63822.0,0.470056]
[1721375036970,0.001,63823.0,63822.0,1.096798]
[1721375037183,0.024,63823.0,63822.0,1.096798]
[1721375037536,0.023,63823.0,63822.0,1.096798]
[1721375038629,0.023,63823.0,63822.0,1.104798]
[1721375038630,0.024,63823.0,63822.0,1.104798]
[1721375038875,0.024,63823.0,63822.0,1.32237974]
[1721375038876,0.001,63823.0,63822.0,1.32237974]
[1721375039090,0.002,63823.0,63822.0,1.32937974]
[1721375040904,0.002,63823.0,63822.0,1.37144293]
[1721375041120,0.002,63823.0,63822.0,1.32937974]
[1721375041910,0.002,63823.0,63822.0,1.76271393]
[1721375042266,0.002,63823.0,63822.0,1.72065074]
[1721375044659,0.002,63823.0,63822.0,1.40727974]
[1721375044866,0.002,63823.0,63822.0,1.32937974]
[1721375045072,0.002,63823.0,63822.0,1.26617974]
[1721375045286,0.002,63823.0,63822.0,1.111798]
[1721375048444,0.00993681,63823.0,63822.0,0.015]
[1721375048667,0.09603681,63823.0,63822.0,0.171685]
[1721375048868,0.17673681,63823.0,63822.0,0.015]
[1721375049727,0.64678581,63823.0,63822.0,0.015]
[1721375050354,1.11453355,63823.0,63822.0,0.015]
[1721375050599,1.42789955,63823.0,63822.0,0.015]
[1721375050873,0.48780155,63823.0,63822.0,0.015]
[1721375051241,0.48780155,63823.0,63822.0,0.007]
[1721375051242,0.48680155,63823.0,63822.0,0.007]
[1721375051446,0.156686,63822.0,63815.0,0.1567]
[1721375051612,0.32911855,63823.0,63809.0,0.0634]
[1721375051613,0.03093681,63821.0,63809.0,0.0634]
[1721375051809,0.03093681,63821.0,63820.0,0.15669]
[1721375052012,0.00793681,63819.0,63818.0,0.313391]
[1721375052327,0.03093681,63819.0,63818.0,0.156695]
[1721375052647,0.03093681,63819.0,63818.0,0.470086]
[1721375055040,0.023,63819.0,63818.0,0.470086]
[1721375055279,0.023,63821.0,63820.0,0.15669]
[1721375055420,0.03093681,63821.0,63820.0,0.470071]
[1721375055620,0.03093681,63821.0,63820.0,0.15669]
[1721375056536,0.03293681,63821.0,63820.0,0.470071]
[1721375056736,0.03693681,63821.0,63820.0,0.15669]
[1721375056960,0.00793681,63809.0,63808.0,0.009163]
[1721375057175,0.03093681,63809.0,63808.0,0.009163]
[1721375057572,0.03093681,63809.0,63808.0,0.00910783]
[1721375058480,0.03193681,63809.0,63808.0,0.00910783]
[1721375058861,0.40473555,63809.0,63808.0,0.00910783]
[1721375059077,0.40373555,63809.0,63808.0,0.00910783]
[1721375059289,0.71717055,63809.0,63808.0,0.00910783]
[1721375059491,0.71717055,63809.0,63808.0,0.01010783]
[1721375059492,0.49133555,63809.0,63808.0,0.01010783]
[1721375059700,0.48533555,63809.0,63808.0,0.00910783]
[1721375060063,0.50033555,63809.0,63808.0,0.01110783]
[1721375060261,0.18923681,63809.0,63808.0,0.01110783]
[1721375060488,0.18923681,63809.0,63808.0,0.01010783]
[1721375061108,0.18923681,63809.0,63808.0,0.01110783]
[1721375061928,0.18123681,63809.0,63808.0,0.01010783]
[1721375062326,0.18923681,63809.0,63808.0,0.01110783]
[1721375063417,0.18923681,63809.0,63808.0,0.16782783]
[1721375063749,0.18923681,63809.0,63808.0,0.01110783]
[1721375064154,0.18923681,63809.0,63808.0,0.48126783]
[1721375064351,0.18923681,63809.0,63808.0,0.79470783]
[1721375065518,0.18923681,63809.0,63808.0,0.48126783]
[1721375066568,0.04593681,63809.0,63808.0,0.48126783]
[1721375067854,0.19133681,63809.0,63808.0,0.16782783]
[1721375068213,0.19133681,63809.0,63808.0,0.48126783]
[1721375068972,0.19133681,63809.0,63808.0,0.79470783]
[1721375070090,0.038,63809.0,63808.0,0.79470783]
[1721375070290,0.04593681,63809.0,63808.0,1.10814783]
[1721375070890,0.038,63809.0,63808.0,1.10814783]
[1721375074087,0.038,63809.0,63808.0,1.57596957]
[1721375074088,0.015,63809.0,63808.0,1.57596957]
[1721375074650,0.015,63809.0,63808.0,1.70612385]
[1721375075267,0.015,63809.0,63808.0,1.10814783]
[1721375075562,0.01593681,63809.0,63808.0,0.79370783]
[1721375075785,0.0641,63810.0,63809.0,0.470152]
[1721375076005,0.07203681,63810.0,63809.0,0.783587]
[1721375076206,0.09503681,63810.0,63809.0,0.783587]
[1721375076568,0.03093681,63810.0,63809.0,0.783587]
[1721375076847,0.023,63810.0,63809.0,0.783587]
[1721375077025,0.026,63810.0,63809.0,0.783587]
[1721375078626,0.026,63810.0,63809.0,0.62687]
[1721375078830,0.026,63810.0,63809.0,0.783587]
[1721375079032,0.03393681,63810.0,63809.0,0.783587]
[1721375079434,0.026,63810.0,63809.0,0.783587]
[1721375079687,0.027,63810.0,63809.0,0.783587]
[1721375080067,0.026,63810.0,63809.0,0.783587]
[1721375080244,0.023,63810.0,63809.0,0.783587]
[1721375080447,0.004,63810.0,63809.0,0.783587]
[1721375080646,0.027,63810.0,63809.0,1.097022]
[1721375080853,0.027,63810.0,63809.0,1.237422]
[1721375081051,0.027,63810.0,63809.0,1.161722]
[1721375081354,0.027,63810.0,63809.0,1.097022]
[1721375082668,0.027,63810.0,63809.0,1.25140374]
[1721375082669,0.004,63810.0,63809.0,1.25140374]
[1721375082869,0.003,63810.0,63809.0,1.381561]
[1721375083073,0.004,63810.0,63809.0,1.381561]
[1721375083989,0.003,63810.0,63809.0,1.38255218]
[1721375084369,0.026,63810.0,63809.0,1.098022]
[1721375085349,0.026,63810.0,63809.0,1.097022]
[1721375085551,0.003,63810.0,63809.0,1.25140374]
[1721375085914,0.003,63810.0,63809.0,1.38155978]
[1721375086338,0.004,63810.0,63809.0,1.38155978]
[1721375086559,0.003,63810.0,63809.0,1.38155978]
[1721375086938,0.00793681,63821.0,63820.0,0.470071]
[1721375087153,0.03093681,63821.0,63820.0,0.15669]
[1721375087413,0.03093681,63821.0,63820.0,0.470071]
[1721375087813,0.023,63821.0,63820.0,0.470071]
[1721375088035,0.023,63821.0,63820.0,0.783452]
[1721375088479,0.036,63821.0,63820.0,0.784452]
[1721375088889,0.047,63821.0,63820.0,0.785452]
[1721375089603,0.05493681,63821.0,63820.0,0.785452]
[1721375090081,0.047,63821.0,63820.0,0.785452]
[1721375092263,0.047,63821.0,63820.0,1.098833]
[1721375092467,0.024,63821.0,63820.0,1.098833]
[1721375092673,0.02483,63821.0,63820.0,1.31771474]
[1721375093480,0.02483,63821.0,63820.0,1.31671474]
[1721375093481,0.01383,63821.0,63820.0,1.31671474]
[1721375093870,0.00083,63821.0,63820.0,1.31571474]
[1721375094284,0.00383,63821.0,63820.0,1.31571474]
[1721375094489,0.00383,63821.0,63820.0,1.62909574]
[1721375094607,0.00383,63821.0,63820.0,1.75922666]
[1721375094845,0.00483,63821.0,63820.0,1.75922666]
[1721375095252,0.00183,63821.0,63820.0,2.50345185]
[1721375095858,0.00083,63821.0,63820.0,2.50345185]
[1721375096068,0.00083,63821.0,63820.0,2.55031524]
[1721375096288,0.00083,63821.0,63820.0,2.50542373]
[1721375096688,0.00083,63821.0,63820.0,2.50342373]
[1721375096886,0.00083,63821.0,63820.0,2.19004273]
[1721375097088,0.00183,63821.0,63820.0,2.20304273]
[1721375097343,0.00183,63821.0,63820.0,2.17037219]
[1721375097546,0.00183,63821.0,63820.0,2.17537219]
[1721375097751,0.00183,63821.0,63820.0,2.21743538]
[1721375097946,0.00183,63821.0,63820.0,2.21243538]
[1721375098184,0.00283,63821.0,63820.0,2.22043538]
[1721375098410,0.00183,63821.0,63820.0,2.20743538]
[1721375098562,0.00083,63821.0,63820.0,2.19943538]
[1721375098916,0.00083,63821.0,63820.0,1.86399119]
[1721375098917,0.00283,63821.0,63820.0,1.86399119]
[1721375099118,0.00283,63821.0,63820.0,1.76795158]
[1721375099322,0.00283,63821.0,63820.0,1.89806462]
[1721375100471,0.00483,63821.0,63820.0,2.54482662]
[1721375100665,0.00483,63821.0,63820.0,2.74876008]
[1721375100666,0.00283,63821.0,63820.0,2.74876008]
[1721375100863,0.00283,63821.0,63820.0,2.38854562]
[1721375101299,0.00283,63821.0,63820.0,2.57181358]
[1721375101634,0.00283,63821.0,63820.0,2.3885258]
[1721375101844,0.00383,63821.0,63820.0,2.3965258]
[1721375102017,0.00083,63821.0,63820.0,2.3645258]
[1721375102238,0.00083,63821.0,63820.0,2.3673198]
[1721375102444,0.00083,63821.0,63820.0,2.3753198]
[1721375102445,0.00183,63821.0,63820.0,2.3753198]
[1721375103574,0.00283,63821.0,63820.0,2.3845258]
[1721375104021,0.00283,63821.0,63820.0,2.3873198]
[1721375104405,0.00283,63821.0,63820.0,2.38732668]
[1721375104902,0.00283,63821.0,63820.0,2.22222668]
[1721375105121,0.00283,63821.0,63820.0,2.21943268]
[1721375106017,0.00283,63821.0,63820.0,1.85459584]
[1721375106217,0.00283,63821.0,63820.0,2.21004003]
[1721375106420,0.00283,63821.0,63820.0,1.89665903]
[1721375106798,0.00283,63821.0,63820.0,2.21004003]
[1721375107104,0.00283,63821.0,63820.0,1.89665903]
[1721375107455,0.00283,63821.0,63820.0,1.89666342]
[1721375108086,0.00283,63821.0,63820.0,2.21004442]
[1721375108287,0.00283,63821.0,63820.0,1.89666342]
[1721375108691,0.00793681,63838.0,63826.0,0.313348]
[1721375108947,0.46304871,63835.0,63827.0,0.15717574]
[1721375109138,0.1446,63839.0,63827.0,0.15717574]